Cogmind - Beta 13 @@@ ROGUE MODE // 2024.04.20 @ 10:10:23 Player: Prominous Vale Result: Destroyed by G-50 Soldier with Heavy Laser Performance ------------- Evolutions (1) 500 Regions Visited (5) 1000 Robots Destroyed (22) 110 Value Destroyed (408) 408 Prototype IDs (0) 0 Alien Tech Used (0) 0 Bonus (915) 915 TOTAL SCORE: 2933 Bonus ------- Follower Combat Kills 346 Met Imprinter 300 Was Imprinted 300 Friendly Fire -31 Cogmind --------- Core Integrity 0/400 Matter 290/300 Energy 44/265 System Corruption 10% Temperature Danger (418) Movement Core (250) Ox4 Location -6/Proximity Caves Parts ------- > --- POWER (1) -------- Improved Ion Engine > --- PROPULSION (4) --- (None) > --- UTILITY (2) ------ (None) > --- WEAPON (2) ------- Heavy Particle Cannon > --- INVENTORY (5) ---- Hacking Drone Bay Particle Gun Bore Cannon Plasma Cutter Peak State ------------ > --- POWER ------------ Improved Deuterium Engine > --- PROPULSION ------- Carbon-fiber Leg Carbon-fiber Leg Carbon-fiber Leg Carbon-fiber Leg > --- UTILITY ---------- Small Storage Unit Targeting Computer > --- WEAPON ----------- Heavy Riot Gun Particle Gun > --- INVENTORY -------- Improved Ion Engine Makeshift Leg Hacking Drone Bay Particle Gun Heavy Particle Cannon Heavy Particle Cannon Bore Cannon Plasma Cutter [Rating: 27] Favorites ----------- Power Improved Ion Engine Engine Improved Ion Engine Propulsion Carbon-fiber Leg Leg Carbon-fiber Leg Flight Unit VTOL Module Utility Small Storage Unit Device Seismic Detector Storage Small Storage Unit Processor Targeting Computer Weapon Particle Gun Energy Gun Particle Gun Energy Cannon Light EM Pulse Cannon Ballistic Gun Light Assault Rifle Build | -11 -10 -9 -9 -7 -6 ------- Run | Yrd Mat Mat Min Zio Pro Slots Evolved 2 | . . 2 . . . Power . | . . . . . . Propulsion 2 | . . 2 . . . Utility . | . . . . . . Weapon . | . . . . . . Parts Attached 43 | 6 8 20 1 . 8 Power 8 | 1 2 2 1 . 2 Engine 8 | 1 2 2 1 . 2 Core . | . . . . . . Reactor . | . . . . . . Propulsion 18 | 2 3 10 . . 3 Treads . | . . . . . . Leg 16 | 2 1 10 . . 3 Wheel . | . . . . . . Hover . | . . . . . . Flight 2 | . 2 . . . . Utility 3 | 1 1 1 . . . Device 1 | . 1 . . . . Storage 1 | 1 . . . . . Processor 1 | . . 1 . . . Hackware . | . . . . . . Protection . | . . . . . . Artifact . | . . . . . . Weapon 14 | 2 2 7 . . 3 Energy Gun 8 | 2 1 4 . . 1 Energy Cannon 3 | . . 1 . . 2 Ballistic Gun 3 | . 1 2 . . . Ballistic Cannon . | . . . . . . Launcher . | . . . . . . Special Weapon . | . . . . . . Impact Weapon . | . . . . . . Slashing Weapon . | . . . . . . Piercing Weapon . | . . . . . . Special Melee Weapon . | . . . . . . Unidentified Prototypes . | . . . . . . Corrupted Parts 2 | . . . . . 2 System Corruption 10 | . . . . . 10 Parts Lost 16 | . 1 4 . . 11 Power 2 | . . 1 . . 1 Propulsion 7 | . 1 1 . . 5 Utility 3 | . . 1 . . 2 Weapon 4 | . . 1 . . 3 Highest Loss Streak 10 | . 1 2 . . 10 To Critical Strikes . | . . . . . . Average Slot Usage (%) 95 | . 89 88 100 100 95 Engine 11 | . 14 10 11 11 10 Leg 38 | . 21 32 44 44 41 Flight 1 | . 5 3 . . . Storage 11 | . 14 11 11 11 10 Processor 9 | . . 8 11 11 11 Energy Gun 19 | . 27 9 22 22 20 Ballistic Gun 2 | . 1 10 . . . Naked Turns . | . . . . . . Heaviest Build 22 | 13 16 18 18 18 22 Greatest Support 60 | 20 20 60 60 60 60 Greatest Overweight (x) 5 | . 5 2 . . 3 Average Overweight (x) . | . . . . . . Largest Inventory Capacity 8 | 8 8 8 8 8 8 Average Capacity 7 | 6 8 8 8 8 7 Most Carried 8 | 5 8 8 8 8 8 Average Carried 7 | 2 5 7 7 7 7 Final Capacity 8 | 8 8 8 8 8 5 Final Carried 8 | 3 8 8 8 8 4 Class Distribution -------------------- 96% | Mutant Dominant Class ---------------- Mutant | -10/Materials Mutant | -9/Materials Mutant | -9/Mines Mutant | -7/Zion Mutant | -6/Proximity Caves Resources | -11 -10 -9 -9 -7 -6 ----------- Run | Yrd Mat Mat Min Zio Pro Matter Collected 739 | 260 . 202 97 38 142 Remotely . | . . . . . . Salvage Created 695 | 112 70 283 87 . 143 Parts 40 | 4 7 21 4 . 4 Haulers Intercepted 1 | . . 1 . . . Recyclers Shooed 1 | . . 1 . . . Parts Field Recycled . | . . . . . . Retrieved Matter . | . . . . . . Parts Self-Destructed 6 | . . . . . 6 Prevented 19 | . . . . . 19 Kills | -11 -10 -9 -9 -7 -6 ------- Run | Yrd Mat Mat Min Zio Pro Combat Hostiles Destroyed 17 | . 4 8 2 . 3 Guns 16 | . 4 8 2 . 2 Cannons 1 | . . . . . 1 Classes Destroyed 7 | 2 1 3 . . 1 Tunneler 2 | 1 . 1 . . . Hauler 1 | . . 1 . . . Recycler 2 | 1 . . 1 . . Swarmer 12 | . 4 5 2 . 1 Grunt 3 | . . 2 . . 1 Duelist 1 | . . . . . 1 Sentry 1 | . . 1 . . . Best Kill Streak 4 | 1 4 3 3 . 2 Combat Bots Only 4 | . 4 3 2 . 2 Max Kills in Single Turn 1 | 1 1 1 1 . 1 Gunslinging . | . . . . . . Exploded . | . . . . . . Melee . | . . . . . . Uniques/NPCs Destroyed . | . . . . . . Combat | -11 -10 -9 -9 -7 -6 -------- Run | Yrd Mat Mat Min Zio Pro Hostile Shots Fired 317 | . 37 83 32 . 165 Missed 107 | . 10 25 9 . 63 Damage Taken 2683 | . 319 743 190 . 1431 Core 448 | . 32 114 32 . 270 Absorbed by Shields . | . . . . . . Core Remaining (%) 93 | 100 87 . . . . Volleys Fired 91 | 2 17 47 9 . 16 Largest 2 | 2 2 2 2 . 2 Hottest 150 | 80 80 130 130 . 150 Shots Fired 176 | 3 34 91 18 . 30 Gun 169 | 3 34 88 18 . 26 Cannon 7 | . . 3 . . 4 Launcher . | . . . . . . Special . | . . . . . . Kinetic 57 | . . 57 . . . Thermal 89 | 1 17 31 18 . 22 Explosive . | . . . . . . Electromagnetic 30 | 2 17 3 . . 8 Robot Hit Streak 13 | 3 4 13 4 . 7 Robot Miss Streak 9 | . 4 9 4 . 4 Penetration Max . | . . . . . . Secondary Targets 3 | . 2 . 1 . . Max Gunslinging Chain 1 | . 1 . 1 . . Shots Hit Robots 98 | 3 11 54 10 . 20 Core Hits 45 | 2 4 20 3 . 16 Critical Kills 1 | . . 1 . . . Critical Parts Destroyed . | . . . . . . Critical Strikes 3 | . 1 1 1 . . Burn 1 | . . . 1 . . Destroy 1 | . . 1 . . . Corrupt 1 | . 1 . . . . Melee Attacks . | . . . . . . Impact . | . . . . . . Slashing . | . . . . . . Piercing . | . . . . . . Sneak Attacks . | . . . . . . Combat Hostiles . | . . . . . . Follow-up Attacks . | . . . . . . Damage Inflicted 1441 | 68 126 686 149 . 412 Guns 1195 | 37 126 571 149 . 312 Cannons 140 | . . 40 . . 100 Explosions 106 | 31 . 75 . . . Melee . | . . . . . . Ramming . | . . . . . . Kinetic 327 | . . 327 . . . Thermal 856 | 41 55 319 149 . 292 Explosive . | . . . . . . Electromagnetic 258 | 27 71 40 . . 120 Impact . | . . . . . . Slashing . | . . . . . . Piercing . | . . . . . . Highest Corruption 10 | . . 1 1 1 10 Average Corruption 2 | . . 1 1 1 9 Corruption Purged . | . . . . . . Corruption Blocked . | . . . . . . Effects 10 | . . 4 1 . 5 Message Errors 1 | . . 1 . . . Matter Fused 3 | . . 1 . . 2 Heat Flow Errors 1 | . . . . . 1 Parts Rejected 1 | . . . 1 . . Parts Fused 1 | . . 1 . . . Data Loss (minor) 3 | . . 1 . . 2 Overload Shots . | . . . . . . Overflow Damage 2 | . . 2 . . . Projectiles . | . . . . . . Explosions 2 | . . 2 . . . Melee . | . . . . . . Knockbacks . | . . . . . . Impact . | . . . . . . Kinetic . | . . . . . . Secondary . | . . . . . . Self-Inflicted Damage 39 | . . 39 . . . Shots 1 | . . 1 . . . Rammed . | . . . . . . Targets Rammed . | . . . . . . Kicked . | . . . . . . Crushed . | . . . . . . Highest Temperature 531 | 18 250 291 276 . 531 Average Temperature 128 | 12 114 76 132 . 203 Received Heat Transfer 762 | . . 165 . . 597 Effects 7 | . . . . . 7 Shutdowns 2 | . . . . . 2 Matter Decay 1 | . . . . . 1 Short Circuit 2 | . . . . . 2 Damage (minor) 2 | . . . . . 2 Siege Activations . | . . . . . . Robots Corrupted . | . . . . . . Combat Hostiles . | . . . . . . Parts Fried . | . . . . . . Impact Corruptions . | . . . . . . Robots Melted . | . . . . . . Combat Hostiles . | . . . . . . Parts Melted 1 | . . . 1 . . Heat Transferred 1910 | 25 125 744 444 . 572 Parts Sabotaged . | . . . . . . Parts Stolen . | . . . . . . Parts Stripped . | . . . . . . Power Chain Reactions 2 | 1 . 1 . . . Alert | -11 -10 -9 -9 -7 -6 ------- Run | Yrd Mat Mat Min Zio Pro Peak Influence 213 | 10 156 213 167 . . Initial 62 | . 6 62 47 . . Average 83 | 7 60 99 121 . . Maximum Alert Level 1 | . . 1 . . . Low Security (%) 97 | 100 100 95 100 . . Level 1 2 | . . 4 . . . Level 2 . | . . . . . . Level 3 . | . . . . . . Level 4 . | . . . . . . Level 5 . | . . . . . . High Security . | . . . . . . Max Security . | . . . . . . Squads Dispatched 4 | . 1 2 . . 1 Investigation 1 | . 1 . . . . Extermination . | . . . . . . Reinforcement 2 | . . 2 . . . Assault 1 | . . . . . 1 Garrison . | . . . . . . Intercept . | . . . . . . Searches Triggered . | . . . . . . Construction Impeded . | . . . . . . Haulers Reinforced . | . . . . . . Active Scanning Responses . | . . . . . . Cargo Convoy Interrupts . | . . . . . . Stealth | -11 -10 -9 -9 -7 -6 --------- Run | Yrd Mat Mat Min Zio Pro Distress Signals 3 | . 1 2 . . . Communications Jammed . | . . . . . . Distress Signals . | . . . . . . Times Spotted 58 | . 9 20 5 . 24 Peak Tracking Total 8 | . 7 6 4 . 8 Tactical Retreats 6 | . 2 . 2 . 2 Traps | -11 -10 -9 -9 -7 -6 ------- Run | Yrd Mat Mat Min Zio Pro Traps Triggered 2 | . . 2 . . . Indirectly . | . . . . . . Trap Hack Attempts . | . . . . . . Triggered . | . . . . . . Disarmed . | . . . . . . Reprogrammed . | . . . . . . Reused . | . . . . . . Traps Extracted . | . . . . . . Installed . | . . . . . . Triggered . | . . . . . . Machines | -11 -10 -9 -9 -7 -6 ---------- Run | Yrd Mat Mat Min Zio Pro Machines Disabled 3 | . . 2 1 . . Max in Single Turn 2 | . . 2 1 . . Machines Repaired . | . . . . . . Machines Dismantled . | . . . . . . Machines Sabotaged . | . . . . . . Overloaded Fab Kills . | . . . . . . Hacking | -11 -10 -9 -9 -7 -6 --------- Run | Yrd Mat Mat Min Zio Pro Machines Accessed 4 | . 1 3 . . . Terminals 4 | . 1 3 . . . Fabricators . | . . . . . . Repair Stations . | . . . . . . Recycling Units . | . . . . . . Scanalyzers . | . . . . . . Garrison Access . | . . . . . . Total Hacks 8 | . 1 7 . . . Successful 2 | . 1 1 . . . Failed 6 | . . 6 . . . Catastrophic . | . . . . . . Database Lockouts . | . . . . . . Manual . | . . . . . . Terminals 8 | . 1 7 . . . Fabricators . | . . . . . . Repair Stations . | . . . . . . Recycling Units . | . . . . . . Scanalyzers . | . . . . . . Garrison Access . | . . . . . . Terminal Hacks 2 | . 1 1 . . . Record 1 | . 1 . . . . Hauler Manifests 1 | . . 1 . . . Fabricator Hacks . | . . . . . . Repair Station Hacks . | . . . . . . Recycling Unit Hacks . | . . . . . . Scanalyzer . | . . . . . . Garrison Access Hacks . | . . . . . . Unauthorized Hacks . | . . . . . . Terminals . | . . . . . . Fabricators . | . . . . . . Repair Stations . | . . . . . . Recycling Units . | . . . . . . Scanalyzers . | . . . . . . Garrison Access . | . . . . . . Data Cores Recovered . | . . . . . . Used . | . . . . . . Hacking Detections 3 | . . 3 . . . Full Trace Events 1 | . . 1 . . . Feedback Events . | . . . . . . Feedback Blocked . | . . . . . . Robot Schematics Acquired 3 | . . . . 3 . Robots Built . | . . . . . . Authchips . | . . . . . . Time . | . . . . . . Total Robot Build Rating . | . . . . . . Part Schematics Acquired 14 | . . . . 14 . Parts Built . | . . . . . . Authchips . | . . . . . . Time . | . . . . . . Total Part Build Rating . | . . . . . . Parts Repaired . | . . . . . . Time . | . . . . . . Parts Recycled . | . . . . . . Recycled Matter . | . . . . . . Retrieved Matter . | . . . . . . Retrieved Components . | . . . . . . Parts Scanalyzed . | . . . . . . Part Schematics Acquired . | . . . . . . Parts Damaged . | . . . . . . Bothacking | -11 -10 -9 -9 -7 -6 ------------ Run | Yrd Mat Mat Min Zio Pro Used RIF Installer . | . . . . . . Robots Hacked . | . . . . . . Non-combat . | . . . . . . Combat . | . . . . . . Robot Hacks Applied . | . . . . . . Relay Couplers Released . | . . . . . . Fabnet Peak Effective % . | . . . . . . Robots Rewired . | . . . . . . Allies Hacked . | . . . . . . Hacks Repelled . | . . . . . . Allies | -11 -10 -9 -9 -7 -6 -------- Run | Yrd Mat Mat Min Zio Pro Total Allies 9 | . . . . 9 . Largest Group 9 | . . . . 9 9 Highest-Rated Group 281 | . . . . 281 281 Highest-Rated Ally 40 | . . . . 40 40 Total Orders . | . . . . . . Ally Attacks 53 | . . . . . 53 Total Damage 1372 | . . . . . 1372 Kills 10 | . . . . . 10 Allies Corrupted . | . . . . . . Allies Melted . | . . . . . . Intel | -11 -10 -9 -9 -7 -6 ------- Run | Yrd Mat Mat Min Zio Pro Robot Analysis Total . | . . . . . . Derelict Logs Recovered 1 | . . . . 1 . Drone Launches . | . . . . . . Drone Recoveries . | . . . . . . Exploration | -11 -10 -9 -9 -7 -6 ------------- Run | Yrd Mat Mat Min Zio Pro Turns Passed 2561 | 77 277 566 84 1304 253 Spaces Moved 1758 | 60 127 322 43 1052 154 Core 25 | 21 1 1 . . 2 Treads . | . . . . . . Legs 1659 | 39 92 281 43 1052 152 Wheels . | . . . . . . Hover . | . . . . . . Flight 74 | . 34 40 . . . Fastest Speed 32 | 50 112 32 120 120 120 Average Speed 119 | 95 125 118 120 120 122 Slowest Speed 300 | 120 300 190 120 120 200 Overloaded Moves . | . . . . . . Propulsion Burnouts . | . . . . . . Robots Hopped . | . . . . . . Cave-ins Triggered . | . . . . . . Exploration Rate (%) 31 | 4 36 28 9 82 31 Regions Visited 5 Branch Regions 3 Pre-discovered Areas 2 | . . . . 2 . Known Exits Taken . | . . . . . . Unknown Exits Taken 5 | 1 1 1 1 1 . Scrap Searched 2 | . . . . 2 . Spaces Dug . | . . . . . . Terrain Destroyed 7 | 4 . 3 . . . Melee . | . . . . . . Projectile . | . . . . . . AOE 7 | 4 . 3 . . . Terrain Rammed . | . . . . . . Walls Destroyed . | . . . . . . Machines Disabled . | . . . . . . Actions | -11 -10 -9 -9 -7 -6 --------- Run | Yrd Mat Mat Min Zio Pro Total 2048 | 75 210 422 57 1096 188 Wait 101 | 1 44 11 4 35 6 Move 1753 | 59 126 321 42 1051 154 Hop . | . . . . . . Pick Up 32 | 7 9 9 1 5 1 Fast Attach 18 | 2 4 9 . . 3 Attach 15 | 4 2 4 1 . 4 Detach 1 | . . 1 . . . Swap 10 | . 2 7 . . 1 Drop 27 | . 6 13 . 5 3 Fire 91 | 2 17 47 9 . 16 Melee . | . . . . . . Ram . | . . . . . . Kick . | . . . . . . Crush . | . . . . . . Escape Stasis . | . . . . . . Rewire . | . . . . . . Trap . | . . . . . . Miscellaneous . | . . . . . . Route ------- -11/Scrapyard -10/Materials -9/Materials -9/Mines (discovered 2 exits: [*Mat] / [*Zio]) -7/Zion -6/Proximity Caves History --------- Turn | Location | Event 2 | -11/Scrapyard | Met Revision 17 4 | -11/Scrapyard | Discovered new exit (range 15) 78 | -11/Scrapyard | Entered Materials 338 | -10/Materials | Discovered new exit (range 15) 352 | -10/Materials | Build established: Mutant 355 | -10/Materials | Entered another Materials area 355 | -9/Materials | Evolved 2 slots: Propulsion x2 906 | -9/Materials | Discovered new exit (range 11) 921 | -9/Materials | Entered Mines 1001 | -9/Mines | A Derelict revealed a hidden shortcut to a safe place 1002 | -9/Mines | Discovered new exit (range 2) 1005 | -9/Mines | Entered Zion 1069 | -7/Zion | System corruption cleaned by Quarantine Array 1204 | -7/Zion | Learned Factory recycling unit intel 1225 | -7/Zion | Learned location of Testing (-3) 1232 | -7/Zion | Learned location of Warlord (-5) 1331 | -7/Zion | Learned Factory emergency access door positions 1636 | -7/Zion | Given the Hacking Drone Bay 1637 | -7/Zion | Found Prototype Device 1737 | -7/Zion | Imprinted 1739 | -7/Zion | Declared Zion's savior 2257 | -7/Zion | Gained Derelict followers 2276 | -7/Zion | Discovered new exit (range 9) 2309 | -7/Zion | Entered Proximity Caves 2309 | -6/Proximity Caves | Accompanied by 9 allies 2325 | -6/Proximity Caves | Attracted the attention of an 0b10 outpost 2374 | -6/Proximity Caves | Lost 4 allies 2428 | -6/Proximity Caves | Core integrity fell below 50% 2453 | -6/Proximity Caves | System corruption reached 10% 2459 | -6/Proximity Caves | Lost 3 allies 2533 | -6/Proximity Caves | Attracted the attention of an 0b10 checkpoint 2559 | -6/Proximity Caves | Core integrity fell below 20% 2562 | -6/Proximity Caves | Destroyed by G-50 Soldier with Heavy Laser Last Messages --------------- C-30 ARC bursts open, deploying its payload. L-41 Fighter unfolds itself. G-50 Soldier unfolds itself. Particle Gun destroyed. Hvy. Riot Gun destroyed. System corrupted: Heat flow error (+168). Imp. Deuterium Engine destroyed. Mak. Leg destroyed. L-41 Fighter destroyed. Carbon-fiber Leg destroyed. Sml. Storage Unit destroyed. Hvy. Particle Cannon broken. Overheating: Short circuit. Acquired 19 matter. Carbon-fiber Leg destroyed. Overheating: Targeting Computer damaged (-4). Core Shielding fries itself beyond repair. Hvy. Particle Cannon destroyed. Targeting Computer destroyed. Critical hit (Burn: +37). Map ----- +----------------------------------------------------+ | ?????????????????????????????????????????????????? | | ?????????????????????????????????????????????????? | | ?????????????????????????????????????????????????? | | ?????????????????????????????????????????????????? | | ?????????????????????????????????????????????????? | | ?????????????????????????????????????????????????? | | ?????????????????????????????????????????????????? | | ?????????????????????????????????????????????????? | | ?????????????????????????????????????????????????? | | ?????????????????????????????????????????????????? | | ?????????????????????????????????????????????????? | | ?????????????????????????????????????????????????? | | ??????????????????????????????? #???????????????? | | ??????????????????????????????# #???????????????? | | ????????????????????????????## ##??????????????? | | ???????????????????????????? ##?????????????? | | ??????????????????????????? ??????????????? | | ??????????????????????????? ???????????????? | | ??????????????????????????? #????????????????? | | ????????????????????????### #????????????????? | | ???????????????????????## #????????????????? | | ???????????????????????# #????????????????? | | ???????????????????????# ##???????????????? | | ???????????????????????# #####???????????? | | ???????????????????????#! #???????????? | | ??????????????????????##%@ ##??????????? | | ??????????????????????# = g ????????? | | ??????????????????????# Y ????????? | | ??????????????????????# g % ###?????????? | | ??????????????????????## g #???????????? | | ???????????????????????## #???????????? | | ???????????????????????## ####???????????? | | ???????????????????????# ##??????????????? | | ???????????????????????# #???????????????? | | ??????????????????????## ## ##???????????????? | | ??????????????????????# #?###????????????????? | | ??????????????????????# g#????????????????????? | | ??????????????????????# g #????????????????????? | | ??????????????????????# ##???????????????????? | | ??????????????????????## ##??????????????????? | | ???????????????????????## ####???????????????? | | ????????????????????????# ##??????????????? | | ????????????????????????## ## #??????????????? | | ?????????????????????????#### ##?????????????? | | ???????????????????????????## ##????????????? | | ????????????????????????#### ##???????????? | | ##??????????????????????# #???????????? | | #?????????????????????# ##???????????? | | ##??????????##???????## ##????????????? | | ###???????## ??????# [%= ##?????????????? | +----------------------------------------------------+ Best States ------------- Heat Dissipation 28 Energy Generation 16 Energy Capacity 290 Matter Stores 300 Matter Capacity 300 Sight Range 16 Terrain Scan Density 10 Evasion (%) 63 Targeting Accuracy 5 Item Schematics ----------------- Imp. Reaction Control System | -7/Zion | Archive Mak. Transmission Jammer | -7/Zion | Archive Mak. Power Source | -7/Zion | Archive Mak. Hacking Suite | -7/Zion | Archive Hyp. Gauss Rifle | -7/Zion | Archive Mak. Hammer | -7/Zion | Archive Hvy. Shock Bomb Launcher | -7/Zion | Archive Mak. Trap Scanner | -7/Zion | Archive Mak. Leg | -7/Zion | Archive Thermal Shield | -7/Zion | Archive Flak Gun | -7/Zion | Archive Hpw. Shock Rifle | -7/Zion | Archive Tactical Coordination Suite | -7/Zion | Archive Imp. Medium Armor Plating | -7/Zion | Archive Robot Schematics ------------------ G-47 Trooper | -7/Zion | Archive B-48 Gladiator | -7/Zion | Archive C-17 Slicer | -7/Zion | Archive Fabricated ------------ Nothing Alien Tech Used ----------------- None Achievements -------------- Robot Respite The More The Merrier The One Challenges ------------ None Game ------ Seed ExplosiveTerrainExoskeleton Manual? 0 Play Time 00:40:46 Cumulative 6.7 hours Start 2024.04.19 @ 20:48:35 End 2024.04.20 @ 10:10:23 Sessions 5 Manual Loads 0 Difficulty Rogue Special Mode None Game No. 13 Rogue 13 Adventurer 0 Explorer 0 Win Type - Total 0 Types 0/0/0/0/0/0/0/0/0 Lore% 6 Gallery% 12 Achievement% 11 Wizard Run 0 Options --------- Layout 1 ASCII 0 Keyboard 0 Movement Mouse Keybinds 0 Fullscreen 1 Font 24/Smallcaps Map View 50x35 Zoom Use 0% Tactical HUD 0 Map Filters NONE Filters NONE Steam 1 RUN: 62ef7d56-e8de-44cb-9346-f6db90b65db5